[Event "SixDays Budapest March IM B 2025"]
[Site "Budapest"]
[Date "2025.03.25"]
[Round "3.1"]
[White "Banerjee, Supratit"]
[Black "Chakrabarty, Reyaansh"]
[Result "0-1"]
[Annotator "NA RC"]
[ECO "B12"]
[WhiteElo "2250"]
[BlackElo "2181"]
[PlyCount "126"]
[EventDate "2025.03.23"]
[EventCountry "HUN"]
[SourceTitle "playchess.com"]
[Source "ChessBase"]
[SourceQuality "1"]
[TimeControl "5400+30"]

1. e4 {[%emt 0:00:03]} c6 {[%emt 0:04:18]} 2. d4 {[%emt 0:00:10]} d5 {[%emt 0:00:10]} 3. e5 {[%emt 0:00:08]} c5 {[%emt 0:00:14]} 4. Nf3 {[%emt 0:00:24]} cxd4 {[%emt 0:00:04]} 5. Nxd4 {[%emt 0:00:09]} Nc6 {[%emt 0:00:04]} 6. Nxc6 {[%emt 0:01:46]} bxc6 {[%emt 0:00:04]} 7. Bd3 {[%emt 0:00:12]} e6 {[%emt 0:00:03]} 8. O-O {[%emt 0:00:23]} Ne7 {[%emt 0:00:05]} 9. Nd2 {[%emt 0:06:06]} a5 {[%emt 0:00:12]} 10. Qe2 {[%emt 0:01:12]} Ng6 {[%emt 0:00:03]} 11. Nf3 {[%emt 0:01:52]} Be7 {[%emt 0:00:09]} 12. g3 {[%emt 0:03:27]} O-O {[%emt 0:02:50]} 13. h4 {[%emt 0:09:47]} f6 {[%emt 0:00:54]} 14. exf6 {[%emt 0:08:57]} Bxf6 {[%emt 0:00:59]} 15. h5 {[%emt 0:07:47]} e5 {[%emt 0:19:34]} 16. hxg6 {[%emt 0:10:25]} e4 {[%emt 0:00:03]} 17. Bxe4 {[%emt 0:06:54]} dxe4 {[%emt 0:00:04]} 18. gxh7+ {[%emt 0:03:34]} Kh8 {[%emt 0:00:04]} 19. Qxe4 {[%emt 0:00:11]} Re8 {[%emt 0:01:59]} 20. Qg6 {[%emt 0:05:19]} Bh3 {[%emt 0:02:54]} 21. Bg5 {[%emt 0:02:28]} Bxf1 {[%emt 0:00:15]} 22. Rxf1 {[%emt 0:00:18]} Rf8 {[%emt 0:11:31]} 23. Bxf6 {[%emt 0:08:39]} Qxf6 {[%emt 0:02:40]} 24. Qxf6 {[%emt 0:00:08]} gxf6 {[%emt 0:00:07]} 25. Nd4 {[%emt 0:00:33]} Rfd8 {[%emt 0:09:20]} 26. c3 {[%emt 0:03:25]} c5 {[%emt 0:01:55]} 27. Nb3 {[%emt 0:00:20]} Rd5 {[%emt 0:02:24]} 28. c4 {[%emt 0:01:22]} Re5 {[%emt 0:00:10]} 29. Nc1 {[%emt 0:03:04]} Rd8 {[%emt 0:00:20]} 30. a4 {[%emt 0:05:32]} Rd4 {[%emt 0:04:29]} 31. Nb3 {[%emt 0:03:52]} Rxc4 {[%emt 0:00:03]} 32. Nxa5 {[%emt 0:00:07]} Rxa4 {[%emt 0:00:08]} 33. Nc6 {[%emt 0:00:04]} Re8 {[%emt 0:01:10]} 34. Rc1 {[%emt 0:00:34]} Ra6 {[%emt 0:00:53]} 35. Rxc5 {[%emt 0:01:03]} Rc8 {[%emt 0:00:04]} 36. b4 {[%emt 0:00:28]} Raxc6 {[%emt 0:00:04]} 37. Rh5 {[%emt 0:00:08]} Rb6 {[%emt 0:00:03]} 38. b5 {[%emt 0:00:08]} Rc7 {[%emt 0:00:01]} 39. Kg2 {[%emt 0:00:09]} Rxh7 {[%emt 0:00:04]} 40. Rf5 {[%emt 0:00:06]} Rhb7 {[%emt 0:00:03]} 41. Rf4 {[%emt 0:00:11]} Kg7 {[%emt 0:00:05]} 42. Rg4+ {[%emt 0:00:04]} Kf7 {[%emt 0:00:03]} 43. Rf4 {[%emt 0:00:21]} Rxb5 {[%emt 0:00:03]} 44. Rf3 {[%emt 0:00:17]} Kg6 {[%emt 0:00:11]} 45. Rd3 {[%emt 0:00:13]} f5 {[%emt 0:00:12]} 46. Rd6+ {[%emt 0:00:22]} Kg7 {[%emt 0:00:27]} 47. Kh3 {[%emt 0:00:21]} Rb4 {[%emt 0:00:13]} 48. Rd5 {[%emt 0:00:21]} Kf6 {[%emt 0:00:12]} 49. Kg2 {[%emt 0:00:09]} Rb2 {[%emt 0:00:05]} 50. Rd8 {[%emt 0:00:40]} Rc7 {[%emt 0:00:15]} 51. Rd3 {[%emt 0:00:08]} Rcc2 {[%emt 0:00:08]} 52. Rf3 {[%emt 0:00:05]} Kg5 {[%emt 0:00:14]} 53. Rf4 {[%emt 0:00:14]} Re2 {[%emt 0:00:17]} 54. Rf3 {[%emt 0:01:15]} Re4 {[%emt 0:00:21]} 55. Ra3 {[%emt 0:00:26]} Kg4 {[%emt 0:02:37]} 56. Ra8 {[%emt 0:01:39]} Ree2 {[%emt 0:00:04]} 57. Ra4+ {[%emt 0:00:07]} Kg5 {[%emt 0:00:02]} 58. Rf4 {[%emt 0:00:10]} Re4 {[%emt 0:00:03]} 59. Rf3 {[%emt 0:00:09]} f4 {[%emt 0:00:05]} 60. Ra3 {[%emt 0:01:23]} Kg4 {[%emt 0:00:48]} 61. Rf3 {[%emt 0:02:30]} Rb1 {[%emt 0:00:06]} 62. Ra3 {[%emt 0:01:15]} f3+ {[%emt 0:00:05]} 63. Kh2 {[%emt 0:00:06]} Rb2 {[%emt 0:00:05]} 0-1

[Event "SixDays Budapest March IM B 2025"]
[Site "Budapest"]
[Date "2025.03.25"]
[Round "3.2"]
[White "Shah, Vishwa"]
[Black "Suder, Jakub"]
[Result "0-1"]
[Annotator "TA"]
[ECO "B24"]
[WhiteElo "2172"]
[BlackElo "2347"]
[PlyCount "67"]
[EventDate "2025.03.23"]
[EventCountry "HUN"]
[SourceTitle "playchess.com"]
[Source "ChessBase"]
[SourceQuality "1"]
[TimeControl "5400+30"]

{[%evp 10,67,14,12,4,-6,-10,8,-4,-4,-13,-31,-33,-35,-30,-46,-46,-38,0,-25,-8,-19,-8,0,0,-31,-25,-29,-25,-25,-13,-47,-41,-47,-51,-49,-50,-208,-201,-206,-215,-208,-208,-206,-204,-191,-192,-197,-143,-167,-134,-152,-107,-995,-994,-1001,-1001,-980,-964,-29996]} 1. e4 {[%emt 0:00:01]} c5 {[%emt 0:00:15]} 2. Nc3 {[%emt 0:00:05]} Nc6 {[%emt 0:00:11]} 3. Bb5 {[%emt 0:00:12]} Nd4 {[%emt 0:00:07]} 4. Nf3 {[%emt 0:00:06]} a6 {[%emt 0:00:38]} 5. Bd3 {[%emt 0:00:30]} e6 {[%emt 0:00:07]} 6. O-O {[%emt 0:00:51]} Nc6 {[%emt 0:00:33] B30: Sicilian: 2...Nc6 3 Bb5, lines without ...g6.} 7. b3 {[%emt 0:00:28]} g6 {[%emt 0:00:42]} 8. Bb2 {[%emt 0:00:36][%cal Oc3d5]} Bg7 {[%emt 0:00:06] The position is equal.} 9. Re1 {[%emt 0:02:19] 9.Na4 is more fashionable.} d6 {[%emt 0:00:11]} 10. Na4 {[%emt 0:01:47]} e5 {[%emt 0:00:08]} 11. Nc3 {[%emt 0:04:09]} Nge7 {[%emt 0:04:14]} 12. a4 {[%emt 0:01:55]} O-O {[%emt 0:03:05]} 13. Bc4 {[%emt 0:00:08]} Kh8 $146 {[%emt 0:01:38]} (13... Nd4 14. Nxd4 cxd4 15. Nd5 Nc6 16. c3 Be6 17. cxd4 exd4 {0-1 Grischuk,A (2776)-Le,T (2514) Titled Tuesday intern op 29th June blitz 2021 (11)}) 14. Nd5 {[%emt 0:03:37]} f5 {[%emt 0:04:02] next ...fxe4 is good for Black.} 15. d3 {[%emt 0:02:39]} Nxd5 {[%emt 0:04:41]} 16. Bxd5 {[%emt 0:00:18]} Rb8 {[%emt 0:10:58]} 17. exf5 {[%emt 0:09:12]} gxf5 {[%emt 0:04:51]} 18. Bxc6 bxc6 {[%emt 0:00:12]} 19. Nd2 {[%emt 0:01:10][%cal Of2f4]} f4 {[%emt 0:04:55]} 20. f3 {[%emt 0:04:30]} Rf6 {[%emt 0:04:30]} 21. Qe2 {[%emt 0:09:16]} Rg6 {[%emt 0:03:16] [#]} 22. Kh1 {[%emt 0:04:20]} Qh4 {[%emt 0:05:09]} 23. Nf1 $2 {[%emt 0:00:13]} (23. Qf1 $1 $15) 23... Be6 {[%emt 0:02:33]} 24. h3 {[%emt 0:03:20]} Rg8 {[%emt 0:02:48]} 25. Nh2 {[%emt 0:00:05]} Bf6 {[%emt 0:03:51][%cal Bg7f6,Bf6h4,Bh4g3][%mdl 32] [#]} 26. Rg1 {[%emt 0:00:04]} Qg3 {[%emt 0:09:14][%cal Oe6h3] ( -> ...Bxh3!)} 27. Qe1 {[%emt 0:01:02]} Qg5 {[%emt 0:03:22]} 28. Bc3 {[%emt 0:00:23]} Qh5 {[%emt 0:01:04]} (28... Bd8 $19 29. Rb1 R8g7) 29. Qe2 $17 {[%emt 0:01:23]} Bh4 {[%emt 0:03:42] and ...Bg3 should not be overlooked} 30. Be1 {[%emt 0:09:24]} Bg3 {[%emt 0:02:43] Black has more active pieces. The white rooks are passive.} 31. Ng4 {[%emt 0:05:47][%mdl 8192]} Rxg4 $19 {[%emt 0:02:14] Black is clearly winning.} (31... Bxe1 $2 32. Raxe1 Bxg4 33. fxg4 Rxg4 34. Rb1 $19) 32. fxg4 {[%emt 0:00:04]} Bxg4 {[%emt 0:00:15]} 33. Qf1 {[%emt 0:00:05]} Be2 {[%emt 0:00:38] A strong pair of Bishops.} 34. Qf3 {Weighted Error Value: White=0.32/Black=0.09 (flawless)   Loses game:     	White=1     	---        Mistake:       	White=1     	Black=1      Inaccurate:     	White=2     	Black=1      OK:         	White=12    	Black=11     Best:        	White=1     	Black=1} 0-1

[Event "SixDays Budapest March IM B 2025"]
[Site "Budapest"]
[Date "2025.03.25"]
[Round "3.4"]
[White "Horvath, David"]
[Black "Katsanis, Vasileios Dim"]
[Result "1/2-1/2"]
[Annotator "NA RC"]
[ECO "D31"]
[WhiteElo "2279"]
[BlackElo "2253"]
[PlyCount "56"]
[EventDate "2025.03.23"]
[EventCountry "HUN"]
[SourceTitle "playchess.com"]
[Source "ChessBase"]
[SourceQuality "1"]
[TimeControl "5400+30"]

1. d4 {[%emt 0:00:04]} d5 {[%emt 0:00:05]} 2. c4 {[%emt 0:00:23]} e6 {[%emt 0:00:05]} 3. Nc3 {[%emt 0:00:15]} a6 {[%emt 0:00:05]} 4. cxd5 {[%emt 0:01:07]} exd5 {[%emt 0:00:05]} 5. Nf3 {[%emt 0:00:35]} Nf6 {[%emt 0:00:06]} 6. Bg5 {[%emt 0:00:07]} Be6 {[%emt 0:00:05]} 7. e3 {[%emt 0:00:12]} Nbd7 {[%emt 0:00:10]} 8. Bd3 {[%emt 0:00:34]} Bd6 {[%emt 0:00:22]} 9. h3 {[%emt 0:02:42]} c6 {[%emt 0:00:24]} 10. Bf4 {[%emt 0:00:39]} Qc7 {[%emt 0:00:11]} 11. Qd2 {[%emt 0:00:57]} O-O {[%emt 0:00:12]} 12. Bxd6 {[%emt 0:00:08]} Qxd6 {[%emt 0:00:05]} 13. O-O {[%emt 0:00:07]} g6 {[%emt 0:04:23]} 14. Qc2 {[%emt 0:15:36]} Qe7 {[%emt 0:01:27]} 15. Rac1 {[%emt 0:06:31]} Ne8 {[%emt 0:03:08]} 16. Na4 {[%emt 0:04:37]} Nd6 {[%emt 0:00:33]} 17. Nc5 {[%emt 0:00:58]} Rfe8 {[%emt 0:01:45]} 18. a4 {[%emt 0:23:03]} Rac8 {[%emt 0:20:54]} 19. b4 {[%emt 0:03:12]} Nb6 {[%emt 0:03:15]} 20. Nd2 {[%emt 0:04:59]} Rc7 {[%emt 0:09:12]} 21. Nxe6 {[%emt 0:05:56]} Qxe6 {[%emt 0:00:18]} 22. b5 {[%emt 0:00:12]} axb5 {[%emt 0:01:16]} 23. axb5 {[%emt 0:00:04]} Ndc4 {[%emt 0:16:44]} 24. bxc6 {[%emt 0:06:54]} Rxc6 {[%emt 0:06:50]} 25. Nxc4 {[%emt 0:00:22]} Nxc4 {[%emt 0:02:00]} 26. Bxc4 {[%emt 0:01:55]} dxc4 {[%emt 0:06:37]} 27. Rb1 {[%emt 0:00:09]} Rc7 {[%emt 0:01:28]} 28. Rb5 {[%emt 0:01:41]} Ra8 {[%emt 0:00:58]} 1/2-1/2

[Event "SixDays Budapest March IM B 2025"]
[Site "Budapest"]
[Date "2025.03.25"]
[Round "3.5"]
[White "Kolimar, Kristof Pal"]
[Black "Pavan Karthikeya Varma Gunturi"]
[Result "1-0"]
[Annotator "NA RC"]
[ECO "E04"]
[WhiteElo "2284"]
[BlackElo "2015"]
[PlyCount "61"]
[EventDate "2025.03.23"]
[EventCountry "HUN"]
[SourceTitle "playchess.com"]
[Source "ChessBase"]
[SourceQuality "1"]
[TimeControl "5400+30"]

1. d4 {[%emt 0:03:06]} Nf6 {[%emt 0:00:02]} 2. c4 {[%emt 0:00:07]} e6 {[%emt 0:00:24]} 3. g3 {[%emt 0:00:06]} d5 {[%emt 0:00:03]} 4. Bg2 {[%emt 0:00:06]} dxc4 {[%emt 0:00:05]} 5. Nf3 {[%emt 0:00:07]} c5 {[%emt 0:00:57]} 6. O-O {[%emt 0:00:28]} Nc6 {[%emt 0:00:03]} 7. Ne5 {[%emt 0:00:33]} Bd7 {[%emt 0:00:50]} 8. Nxc4 {[%emt 0:00:08]} cxd4 {[%emt 0:00:39]} 9. Bf4 {[%emt 0:00:05]} Be7 {[%emt 0:00:02]} 10. Nd6+ {[%emt 0:02:04]} Kf8 {[%emt 0:00:16]} 11. Nxb7 {[%emt 0:01:41]} Qb6 {[%emt 0:00:03]} 12. Nd6 {[%emt 0:00:12]} Qc5 {[%emt 0:00:02]} 13. Ne4 {[%emt 0:01:26]} Nxe4 {[%emt 0:05:52]} 14. Bxe4 {[%emt 0:00:07]} e5 {[%emt 0:04:54]} 15. Bd2 {[%emt 0:00:32]} f5 {[%emt 0:00:56]} 16. Bg2 {[%emt 0:00:09]} e4 {[%emt 0:04:25]} 17. Na3 {[%emt 0:06:32]} Rb8 {[%emt 0:06:20]} 18. Rc1 {[%emt 0:06:09]} Qd5 {[%emt 0:03:34]} 19. Nc4 {[%emt 0:02:26]} Kf7 {[%emt 0:01:44]} 20. f3 {[%emt 0:04:35]} exf3 {[%emt 0:07:33]} 21. Bxf3 {[%emt 0:08:30]} Qe6 {[%emt 0:02:59]} 22. e4 {[%emt 0:10:03]} Rhc8 {[%emt 0:05:47]} 23. exf5 {[%emt 0:00:45]} Qf6 {[%emt 0:00:44]} 24. Bd5+ {[%emt 0:01:51]} Kf8 {[%emt 0:01:13]} 25. h4 {[%emt 0:15:26]} h6 {[%emt 0:04:01]} 26. Bg5 {[%emt 0:06:09]} hxg5 {[%emt 0:07:00]} 27. Qh5 {[%emt 0:00:06]} Bc5 {[%emt 0:06:09]} 28. hxg5 {[%emt 0:01:21]} d3+ {[%emt 0:01:03]} 29. Kh1 {[%emt 0:00:09]} g6 {[%emt 0:02:01]} 30. Qh6+ {[%emt 0:01:08]} Qg7 {[%emt 0:00:08]} 31. fxg6+ {[%emt 0:00:03]} 1-0

[Event "SixDays Budapest March IM B 2025"]
[Site "Budapest"]
[Date "2025.03.26"]
[Round "4.1"]
[White "Chakrabarty, Reyaansh"]
[Black "Pavan Karthikeya Varma Gunturi"]
[Result "1/2-1/2"]
[Annotator "NA RC"]
[ECO "B40"]
[WhiteElo "2181"]
[BlackElo "2015"]
[PlyCount "104"]
[EventDate "2025.03.23"]
[EventCountry "HUN"]
[SourceTitle "playchess.com"]
[Source "ChessBase"]
[SourceQuality "1"]
[TimeControl "5400+30"]

1. e4 {[%emt 0:05:06]} c5 {[%emt 0:00:07]} 2. Nf3 {[%emt 0:00:18]} e6 {[%emt 0:00:05]} 3. b3 {[%emt 0:00:04]} a6 {[%emt 0:01:52]} 4. Bb2 {[%emt 0:00:07]} b5 {[%emt 0:00:35]} 5. d4 {[%emt 0:02:04]} cxd4 {[%emt 0:00:23]} 6. Nxd4 {[%emt 0:00:16]} Bb7 $11 {[%emt 0:01:37]} 7. Bd3 {[%emt 0:00:52]} d6 {[%emt 0:03:23]} 8. O-O {[%emt 0:02:12]} Nf6 {[%emt 0:00:43]} 9. Qe2 {[%emt 0:00:21]} Nbd7 {[%emt 0:04:20]} 10. Nd2 {[%emt 0:01:13]} e5 {[%emt 0:05:07]} 11. Nf5 {[%emt 0:01:06]} g6 {[%emt 0:00:57]} 12. Ne3 {[%emt 0:02:17]} Bg7 {[%emt 0:07:16]} 13. a4 {[%emt 0:01:24]} bxa4 {[%emt 0:02:26]} 14. Nec4 {[%emt 0:26:41]} Nc5 {[%emt 0:03:52]} 15. Ba3 {[%emt 0:00:14]} Rc8 {[%emt 0:06:05]} 16. Bxc5 {[%emt 0:00:09]} Rxc5 {[%emt 0:00:57]} 17. b4 {[%emt 0:10:00]} Rc7 {[%emt 0:08:13]} 18. Na5 {[%emt 0:00:44]} d5 {[%emt 0:03:28]} 19. Nxb7 {[%emt 0:00:23]} Rxb7 {[%emt 0:00:12]} 20. Rxa4 {[%emt 0:05:19]} O-O {[%emt 0:06:18]} 21. Bxa6 {[%emt 0:00:19]} Rc7 {[%emt 0:00:45]} 22. Qd3 {[%emt 0:07:10]} dxe4 {[%emt 0:02:21]} 23. Nxe4 {[%emt 0:00:07]} Nxe4 {[%emt 0:00:09]} 24. Qxe4 {[%emt 0:00:13]} Rc3 {[%emt 0:00:17]} 25. Bc4 {[%emt 0:02:17]} Kh8 {[%emt 0:05:24]} 26. Ra7 {[%emt 0:03:04]} f5 {[%emt 0:02:03]} 27. Qb7 {[%emt 0:00:53]} Qf6 {[%emt 0:01:17]} 28. Bb3 {[%emt 0:00:48]} e4 {[%emt 0:02:08]} 29. Qe7 {[%emt 0:00:40]} Qxe7 {[%emt 0:08:47]} 30. Rxe7 {[%emt 0:00:07]} Rd8 {[%emt 0:01:32]} 31. b5 {[%emt 0:02:22]} Bd4 {[%emt 0:05:39]} 32. h3 {[%emt 0:04:02]} Bc5 {[%emt 0:06:08]} 33. Re6 {[%emt 0:01:26]} Bd4 {[%emt 0:02:13]} 34. Kh1 {[%emt 0:02:35]} Rcc8 {[%emt 0:03:01]} 35. c4 {[%emt 0:05:11]} Bc5 {[%emt 0:00:45]} 36. Rc6 {[%emt 0:00:02]} Rxc6 {[%emt 0:02:51]} 37. bxc6 {[%emt 0:00:10]} Rc8 {[%emt 0:00:34]} 38. Ba4 {[%emt 0:00:03]} f4 {[%emt 0:00:37]} 39. g3 {[%emt 0:01:20]} fxg3 {[%emt 0:03:14]} 40. fxg3 {[%emt 0:00:10]} e3 {[%emt 0:00:16]} 41. Kg2 {[%emt 0:01:27]} Bb4 {[%emt 0:00:38]} 42. Kf3 {[%emt 0:00:07]} Rf8+ {[%emt 0:00:31]} 43. Ke2 {[%emt 0:00:07]} Rxf1 {[%emt 0:00:18]} 44. Kxf1 {[%emt 0:00:06]} Bd6 {[%emt 0:01:02]} 45. g4 {[%emt 0:00:12]} Kg7 {[%emt 0:00:55]} 46. g5 {[%emt 0:00:10]} h6 {[%emt 0:00:37]} 47. h4 {[%emt 0:00:02]} hxg5 {[%emt 0:00:22]} 48. hxg5 {[%emt 0:00:00]} Kf7 {[%emt 0:00:44]} 49. Ke2 {[%emt 0:00:53]} Bf4 {[%emt 0:00:26]} 50. Kf3 {[%emt 0:00:17]} e2 {[%emt 0:00:25]} 51. Kxe2 {[%emt 0:00:14]} Ke6 {[%emt 0:00:53]} 52. Kf3 {[%emt 0:02:39]} Kf5 {[%emt 0:00:14]} 1/2-1/2

[Event "SixDays Budapest March IM B 2025"]
[Site "Budapest"]
[Date "2025.03.26"]
[Round "4.2"]
[White "Katsanis, Vasileios Dim"]
[Black "Kolimar, Kristof Pal"]
[Result "0-1"]
[Annotator "NA RC"]
[ECO "D35"]
[WhiteElo "2253"]
[BlackElo "2284"]
[PlyCount "120"]
[EventDate "2025.03.23"]
[EventCountry "HUN"]
[SourceTitle "playchess.com"]
[Source "ChessBase"]
[SourceQuality "1"]
[TimeControl "5400+30"]

1. d4 {[%emt 0:00:03]} d5 {[%emt 0:00:10]} 2. c4 {[%emt 0:00:14]} e6 {[%emt 0:00:04]} 3. Nc3 {[%emt 0:00:05]} Nf6 {[%emt 0:00:05]} 4. cxd5 {[%emt 0:00:07]} exd5 {[%emt 0:00:05]} 5. Bg5 {[%emt 0:00:06]} c6 {[%emt 0:00:06]} 6. e3 {[%emt 0:01:13]} h6 {[%emt 0:00:05]} 7. Bh4 {[%emt 0:00:12]} Be7 {[%emt 0:00:06]} 8. Bd3 {[%emt 0:00:41]} O-O {[%emt 0:00:07]} 9. Nge2 {[%emt 0:01:10]} Ne8 {[%emt 0:00:07]} 10. Bxe7 {[%emt 0:00:23]} Qxe7 {[%emt 0:00:05]} 11. Qc2 {[%emt 0:00:37]} Nd7 {[%emt 0:01:15]} 12. O-O {[%emt 0:00:42]} Nd6 {[%emt 0:00:08]} 13. Rae1 {[%emt 0:02:21]} Nf6 {[%emt 0:00:34]} 14. Nc1 {[%emt 0:07:14]} Nfe4 {[%emt 0:07:43]} 15. f3 {[%emt 0:01:49]} Nxc3 {[%emt 0:00:12]} 16. bxc3 {[%emt 0:03:25]} f5 {[%emt 0:04:18]} 17. Nb3 {[%emt 0:11:22]} Be6 {[%emt 0:12:16]} 18. Nd2 {[%emt 0:05:54]} Rae8 {[%emt 0:04:15]} 19. a4 {[%emt 0:32:21]} Qg5 {[%emt 0:06:47]} 20. f4 {[%emt 0:01:59]} Qd8 {[%emt 0:00:52]} 21. Qb2 {[%emt 0:01:11]} Qc7 {[%emt 0:04:30]} 22. Nf3 {[%emt 0:01:00]} Nc4 {[%emt 0:05:22]} 23. Qc2 {[%emt 0:04:05]} b5 {[%emt 0:02:17]} 24. Ne5 {[%emt 0:00:48]} Rb8 {[%emt 0:03:03]} 25. g4 {[%emt 0:01:56]} Nxe5 {[%emt 0:10:06]} 26. fxe5 {[%emt 0:01:09]} fxg4 {[%emt 0:00:13]} 27. Rxf8+ {[%emt 0:04:30]} Rxf8 {[%emt 0:01:31]} 28. axb5 {[%emt 0:00:27]} cxb5 {[%emt 0:02:15]} 29. Bxb5 {[%emt 0:00:08]} Bf5 {[%emt 0:05:21]} 30. Bd3 {[%emt 0:02:44]} Bxd3 {[%emt 0:03:04]} 31. Qxd3 {[%emt 0:00:01]} Qf7 {[%emt 0:02:31]} 32. Qe2 {[%emt 0:01:09]} Qg6 {[%emt 0:05:17]} 33. Rf1 {[%emt 0:02:23]} Rxf1+ {[%emt 0:03:15]} 34. Kxf1 {[%emt 0:01:28]} Qe4 {[%emt 0:00:58]} 35. Kg1 {[%emt 0:01:38]} Kh7 {[%emt 0:02:15]} 36. c4 {[%emt 0:00:36]} dxc4 {[%emt 0:02:15]} 37. Qxc4 {[%emt 0:00:04]} Qxe3+ {[%emt 0:00:34]} 38. Kg2 {[%emt 0:01:20]} Qe4+ {[%emt 0:01:26]} 39. Kf2 {[%emt 0:00:14]} h5 {[%emt 0:04:10]} 40. e6 {[%emt 0:04:43]} h4 {[%emt 0:01:53]} 41. Qc5 {[%emt 0:00:49]} Qxe6 {[%emt 0:01:33]} 42. Qxa7 {[%emt 0:00:10]} Qf5+ {[%emt 0:01:33]} 43. Ke3 {[%emt 0:00:27]} Qf3+ {[%emt 0:00:40]} 44. Kd2 {[%emt 0:00:04]} Qf2+ {[%emt 0:02:04]} 45. Kd3 {[%emt 0:00:11]} Qxh2 {[%emt 0:01:36]} 46. Qf7 {[%emt 0:00:35]} Qd6 {[%emt 0:00:41]} 47. Kc4 {[%emt 0:00:58]} g3 {[%emt 0:01:33]} 48. Qf3 {[%emt 0:02:44]} Qg6 {[%emt 0:01:27]} 49. Qf4 {[%emt 0:00:20]} Qf6 {[%emt 0:00:58]} 50. Qg4 {[%emt 0:01:55]} Kh6 {[%emt 0:00:46]} 51. d5 {[%emt 0:00:12]} Qg5 {[%emt 0:00:41]} 52. Qe6+ {[%emt 0:00:16]} g6 {[%emt 0:00:22]} 53. Qe8 {[%emt 0:01:41]} Qf4+ {[%emt 0:00:14]} 54. Kc5 {[%emt 0:00:16]} g2 {[%emt 0:00:25]} 55. Qe1 {[%emt 0:00:25]} Qg3 {[%emt 0:00:35]} 56. Qg1 {[%emt 0:00:36]} h3 {[%emt 0:00:09]} 57. Kc6 {[%emt 0:00:27]} h2 {[%emt 0:00:32]} 58. Qc1+ {[%emt 0:00:12]} Qg5 {[%emt 0:00:14]} 59. Qc3 {[%emt 0:01:30]} Kh7 {[%emt 0:01:03]} 60. Qh3+ {[%emt 0:00:07]} Qh5 {[%emt 0:00:06]} 0-1